bitfinex/quotes_ETHUSD_20250426
["timestamp","ask_amount","ask_price","bid_price","bid_amount"]
[1745668542236,5.606,1788.7,1788.6,5.590965]
[1745668542414,5.606,1788.7,1788.6,11.58877576]
[1745668542841,5.606,1788.7,1788.6,5.99781076]
[1745668543407,5.606,1788.7,1788.6,11.58877576]
[1745668543634,5.606,1788.7,1788.6,5.99781076]
[1745668544898,5.606,1788.7,1788.6,11.58877576]
[1745668545102,5.606,1788.7,1788.6,15.81766301]
[1745668545345,5.606,1788.7,1788.6,16.62426301]
[1745668546449,5.606,1788.7,1788.6,12.39537576]
[1745668546655,5.606,1788.7,1788.6,11.58877576]
[1745668550315,5.606,1788.7,1788.6,5.99781076]
[1745668550524,5.606,1788.7,1788.1,3.0]
[1745668550525,5.606,1788.7,1788.2,12.36635648]
[1745668550860,0.7608,1788.6,1788.2,11.58989538]
[1745668551420,0.7608,1788.6,1787.9,0.7765]
[1745668551421,3.7608,1788.6,1787.9,0.7765]
[1745668551625,0.7608,1788.5,1787.9,5.59291455]
[1745668551927,0.7608,1788.5,1788.0,5.59276809]
[1745668552250,0.7608,1788.5,1787.9,5.59298941]
[1745668552547,0.7608,1788.5,1787.8,5.99781076]
[1745668552755,0.7608,1788.5,1787.8,11.59110464]
[1745668553528,1.272834,1788.5,1787.9,5.59312411]
[1745668553743,1.272834,1788.5,1787.8,11.59108341]
[1745668554350,1.272834,1788.5,1787.9,5.5931492]
[1745668554659,1.272834,1788.5,1787.8,11.59107582]
[1745668555449,1.333834,1788.4,1787.7,5.59359098]
[1745668555750,1.333834,1788.4,1787.7,5.59353417]
[1745668555929,1.333834,1788.4,1787.7,11.18707342]
[1745668556252,1.333834,1788.4,1787.8,5.59342987]
[1745668556651,1.333834,1788.4,1787.7,5.59368819]
[1745668556952,0.8218,1788.3,1787.4,14.93091314]
[1745668557143,5.605,1788.2,1787.8,5.59341735]
[1745668557325,5.605,1788.2,1787.8,5.59328273]
[1745668557516,5.605,1788.2,1787.5,7.08745607]
[1745668557718,5.605,1788.2,1787.9,5.59314354]
[1745668558163,5.605,1788.2,1787.8,5.59326284]
[1745668558635,5.605,1788.2,1787.9,5.59311263]
[1745668559353,5.605,1788.2,1787.8,5.59327636]
[1745668559563,5.605,1788.2,1787.8,5.59322292]
[1745668560171,5.605,1788.2,1787.7,5.59361804]
[1745668561146,5.605,1788.2,1787.6,11.59168871]
[1745668561659,5.605,1788.2,1787.6,11.59166632]
[1745668561964,3.8146,1788.1,1787.6,5.99781076]
[1745668562257,4.24120572,1788.1,1787.6,5.99781076]
[1745668562863,4.75408158,1788.1,1787.6,5.99781076]
[1745668563166,5.473,1788.0,1787.9,5.59315397]
[1745668563362,5.473,1788.0,1787.9,6.36255397]
[1745668564265,5.473,1788.0,1787.9,5.59315397]
[1745668564720,5.473,1788.0,1787.7,0.50597163]
[1745668564925,6.2539,1788.0,1787.6,5.99781076]
[1745668565123,3.0,1787.9,1787.6,5.99781076]
[1745668565337,3.0,1787.7,1787.1,5.99781076]
[1745668565559,0.7924,1787.6,1787.1,5.99781076]
[1745668565743,0.7924,1787.3,1787.1,5.99781076]
[1745668565937,0.7924,1787.3,1786.8,5.99781076]
[1745668566335,0.7924,1787.2,1786.8,5.99781076]
[1745668566661,3.7924,1787.2,1786.8,5.99781076]
[1745668566915,0.7924,1787.1,1786.8,5.99781076]
[1745668567195,3.7924,1786.9,1786.4,5.99781076]
[1745668567492,0.7924,1786.9,1786.5,0.50597163]
[1745668567791,0.7924,1786.9,1786.7,5.59686115]
[1745668567981,0.7924,1786.9,1786.5,11.19475248]
[1745668568187,0.7924,1786.9,1786.5,5.59753708]
[1745668568501,3.7924,1786.9,1786.4,7.15738848]
[1745668568708,3.7924,1786.9,1786.4,5.99781076]
[1745668569684,0.7924,1786.9,1786.4,7.15739352]
[1745668570017,5.475,1786.8,1786.7,5.59672826]
[1745668570304,5.475,1787.1,1786.7,5.59684645]
[1745668570634,3.7924,1787.5,1787.0,5.59580056]
[1745668570804,5.475,1787.1,1786.9,5.59614211]
[1745668571012,5.475,1787.1,1787.0,6.13]
[1745668571179,6.2674,1787.1,1787.0,6.13]
[1745668571378,0.7924,1787.5,1787.1,5.59537792]
[1745668571590,0.7924,1787.5,1787.2,11.7251717]
[1745668572007,0.7924,1787.5,1787.2,6.13]
[1745668572196,0.7924,1787.5,1787.2,11.72525313]
[1745668572388,0.7924,1787.5,1787.3,5.59491412]
[1745668572885,0.7924,1787.5,1787.4,5.59471858]
[1745668573086,5.475,1787.6,1787.3,5.59491412]
[1745668573087,5.475,1787.6,1787.3,1.17249141]
[1745668573300,5.475,1787.6,1787.2,11.72521533]
[1745668573500,5.475,1787.6,1787.2,11.72531577]
[1745668573678,5.475,1787.6,1787.2,6.13]
[1745668574304,5.475,1787.6,1787.3,5.5949614]
[1745668574514,5.475,1787.6,1787.2,11.72524121]
[1745668575103,5.475,1787.6,1787.4,5.59451547]
[1745668575832,5.475,1787.6,1787.4,5.59449499]
[1745668576020,5.475,1787.6,1787.5,5.59440559]
[1745668576208,5.475,1787.6,1787.4,5.5945268]
[1745668576404,5.475,1787.6,1787.5,5.59440559]
[1745668576827,5.475,1787.6,1787.4,5.59452691]
[1745668577035,5.475,1787.6,1787.4,6.1539796]
[1745668577435,5.475,1787.6,1787.5,11.72440559]
[1745668577733,5.475,1787.6,1787.5,6.13]
[1745668578752,0.7943,1787.5,1787.2,6.13]
[1745668579045,3.7943,1787.5,1787.2,6.13]
[1745668580048,0.7943,1787.5,1787.2,6.13]
[1745668580253,0.7943,1787.5,1787.2,11.72527685]
[1745668580908,0.7943,1787.5,1787.2,6.13]
[1745668581343,0.7943,1787.5,1787.2,11.72534268]
[1745668581843,0.7943,1787.5,1787.2,6.13]
[1745668583082,0.7943,1787.5,1787.2,11.72531679]
[1745668583247,0.7943,1787.5,1787.2,6.13]
[1745668585371,0.7943,1787.5,1787.2,12.8977683]
[1745668585691,0.7943,1787.5,1787.2,7.30254125]
[1745668585890,5.475,1787.4,1787.2,12.89769996]
[1745668586091,5.475,1787.3,1787.2,12.89769996]
[1745668586997,0.7621,1787.7,1787.3,5.59485374]
[1745668587157,5.475,1787.4,1787.3,5.59485374]
[1745668587903,5.475,1787.8,1787.6,5.59396157]
[1745668588188,5.475,1787.8,1787.6,6.38917799]
[1745668588369,5.475,1787.8,1787.7,5.59377971]
[1745668588686,5.475,1787.8,1787.7,11.72377971]
[1745668588854,5.475,1787.8,1787.7,13.53508649]
[1745668589059,0.8262,1788.5,1787.7,7.94130678]
[1745668589255,5.475,1788.4,1788.0,5.59258389]
[1745668590101,5.475,1788.4,1788.0,11.72269666]
[1745668590409,5.475,1788.4,1788.0,9.4272145]
[1745668590410,5.435,1788.4,1788.0,9.4272145]
[1745668590689,5.435,1788.4,1788.3,5.59159155]
[1745668590893,5.435,1788.4,1788.3,11.72159155]
[1745668591097,5.435,1788.4,1788.3,13.45296339]
[1745668591970,5.435,1788.4,1788.3,14.24826339]
[1745668593659,16.795,1788.7,1788.6,5.590965]
[1745668593980,22.229,1788.7,1788.5,5.59115223]
[1745668594581,22.229,1788.7,1788.6,5.590965]
[1745668595262,22.229,1788.7,1788.6,11.720965]
[1745668595999,22.229,1788.7,1788.6,6.13]
[1745668599204,5.434,1788.7,1788.6,6.13]
[1745668600927,5.482,1788.9,1788.6,6.743]
[1745668601223,5.482,1788.9,1788.6,6.13]
[1745668601446,5.482,1788.9,1788.6,11.7207603]
[1745668601790,5.482,1788.9,1788.6,11.72082095]
[1745668601996,5.482,1788.9,1788.7,5.5906053]
[1745668602728,5.482,1788.9,1788.6,11.72082536]
[1745668603021,5.482,1788.9,1788.6,17.31149416]
[1745668603193,5.482,1788.9,1788.6,6.13]
[1745668603396,0.8298,1788.8,1788.6,6.13]
[1745668604290,0.8298,1788.8,1788.6,11.72096234]
[1745668606111,5.482,1788.9,1788.7,5.59042951]
[1745668606312,5.482,1788.9,1788.8,5.59033989]
[1745668608637,5.482,1788.9,1788.8,11.72033989]
[1745668609337,5.482,1788.9,1788.8,12.54993989]
[1745668609531,5.482,1788.9,1788.8,11.72033989]
[1745668610535,5.482,1788.9,1788.8,13.45141683]
[1745668610706,5.482,1788.9,1788.8,6.13]
[1745668615041,5.482,1788.9,1788.6,5.59095434]
[1745668615042,0.7953,1788.8,1788.5,6.13]
[1745668615536,0.7953,1788.8,1788.5,11.72125141]
[1745668615760,0.7953,1788.8,1788.5,6.13]
[1745668616152,0.7953,1788.7,1788.0,5.59270917]
[1745668616301,0.7953,1788.7,1788.0,7.12118876]
[1745668616505,1.22463614,1788.7,1788.0,7.12118876]
[1745668616746,0.42933614,1788.7,1788.0,1.52847959]
[1745668616918,0.7953,1788.6,1788.0,7.12129579]
[1745668617122,5.431,1788.5,1788.0,7.12129579]
[1745668617560,5.431,1788.5,1788.0,1.52847959]
[1745668617929,5.431,1788.5,1788.0,7.12117806]
[1745668618453,5.431,1788.5,1788.0,1.52847959]
[1745668618625,5.431,1788.5,1788.0,7.12130658]
[1745668618826,5.431,1788.5,1788.3,5.59177334]
[1745668619014,5.431,1788.5,1788.2,5.59202099]
[1745668619654,5.431,1788.5,1788.1,12.43451734]
[1745668619849,5.431,1788.5,1788.1,6.13]
[1745668620055,5.431,1788.5,1788.1,11.72249555]
[1745668621268,5.431,1788.5,1788.1,11.72233134]
[1745668621956,5.431,1788.5,1788.1,6.13]
[1745668622156,5.431,1788.5,1788.1,11.72237488]
[1745668622356,5.431,1788.5,1788.2,5.5920414]
[1745668623593,5.431,1788.5,1788.1,8.01435553]
[1745668623794,5.431,1788.5,1788.2,5.59201005]
[1745668624106,5.431,1788.5,1788.1,11.72231896]
[1745668624274,5.431,1788.5,1788.3,5.59179009]
[1745668625404,5.431,1788.5,1788.4,5.59159024]
[1745668625689,5.314,1788.5,1788.2,5.59213964]
[1745668625888,5.314,1788.5,1788.2,5.59221166]
[1745668626359,3.0,1788.4,1788.1,6.13]
[1745668628105,0.7866,1788.3,1788.1,6.13]
[1745668628311,3.0,1788.2,1788.1,6.13]
[1745668628511,3.7866,1788.2,1788.1,6.13]
[1745668628828,3.7866,1788.2,1787.7,6.13]
[1745668628829,4.09490581,1788.2,1787.7,6.13]
[1745668629136,3.0,1788.0,1787.7,12.97323518]
[1745668629293,5.314,1788.1,1787.8,5.59324806]
[1745668629497,5.314,1788.1,1787.9,5.59301143]
[1745668630016,5.314,1788.1,1787.9,5.59297984]
[1745668630223,5.314,1788.1,1787.9,6.79329922]
[1745668630549,0.7866,1788.6,1787.9,6.79329262]
[1745668630702,8.314,1788.5,1788.0,5.59268686]
[1745668631098,3.0,1788.4,1788.0,5.59261048]
[1745668631299,0.7866,1788.3,1787.9,12.923273]
[1745668632513,0.7866,1788.3,1787.9,6.13]
[1745668633441,0.7866,1788.3,1787.9,11.72313592]
[1745668634553,0.7866,1788.3,1787.9,6.13]
[1745668637166,0.7866,1788.3,1787.9,11.72314906]
[1745668638444,0.7866,1788.3,1787.9,6.13]
[1745668639867,0.7866,1788.3,1788.0,5.59267217]
[1745668640464,0.7866,1788.3,1787.9,11.72301852]
[1745668641650,0.7866,1788.3,1787.9,6.13]
[1745668642564,1.30126164,1788.3,1787.9,6.13]
[1745668643178,3.0,1788.2,1787.9,6.13]
[1745668643457,5.315,1788.1,1787.9,6.13]
[1745668646503,5.315,1788.1,1787.9,11.72296917]
[1745668647506,5.315,1788.1,1787.9,6.13]
[1745668647654,5.315,1788.1,1787.9,11.72312823]
[1745668647854,3.0,1788.2,1787.9,11.72312823]
[1745668648092,5.315,1788.1,1787.9,12.89535784]
[1745668648297,0.30923862,1788.4,1788.0,1.31385624]
[1745668648473,5.315,1788.3,1788.2,5.59204943]
[1745668649397,16.787,1788.5,1788.4,5.59159024]
[1745668649574,22.102,1788.5,1788.4,5.59159024]
[1745668651799,22.102,1788.5,1788.3,5.59177141]
[1745668652510,22.102,1788.5,1788.4,5.59159024]
[1745668652715,4.28639123,1788.9,1788.5,5.5911333]
[1745668652878,5.168,1788.8,1788.5,5.5911333]
[1745668653183,5.168,1788.8,1788.4,7.51772641]
[1745668653184,5.68401089,1788.8,1788.6,5.59094568]
[1745668653587,5.68401089,1788.8,1788.7,5.59065242]
[1745668653810,0.51601089,1788.8,1788.7,5.59065242]
[1745668654014,5.168,1788.8,1788.7,5.59065242]
[1745668654585,5.168,1788.8,1788.7,6.70881223]
[1745668654991,5.168,1788.8,1788.7,5.59065242]
[1745668655513,5.168,1788.8,1788.5,6.13]
[1745668655686,5.168,1788.8,1788.7,5.59065242]
[1745668657386,3.8011,1788.7,1788.2,6.13]
[1745668657589,5.167,1788.6,1788.2,6.13]
[1745668657740,5.167,1788.6,1788.2,7.30223712]
[1745668658088,5.167,1788.5,1788.4,5.59143367]
[1745668658290,0.8011,1788.7,1788.4,5.59143367]
[1745668658451,5.167,1788.6,1788.5,5.59109578]
[1745668658638,0.8318,1788.9,1788.6,5.59069242]
[1745668658944,5.167,1788.8,1788.7,5.59053464]
[1745668659273,0.05,1788.9,1788.8,5.59033989]
[1745668659477,5.217,1788.9,1788.7,5.59047355]
[1745668659851,5.217,1788.9,1788.8,5.59033989]
[1745668660382,5.217,1788.9,1788.7,5.59052595]
[1745668660681,5.217,1788.9,1788.7,7.40136884]
[1745668660977,5.217,1788.9,1788.7,1.81084289]
[1745668661480,5.217,1788.9,1788.6,12.51772616]
[1745668661991,5.217,1788.9,1788.6,12.51795836]
[1745668662339,5.217,1788.9,1788.6,12.51771832]
[1745668662577,5.217,1788.9,1788.6,18.10843032]
[1745668662753,5.217,1788.9,1788.6,6.927]
[1745668662954,5.217,1788.9,1788.6,13.82548663]
[1745668663678,5.217,1788.9,1788.6,13.8254569]
[1745668665376,5.217,1788.9,1788.6,6.927]
[1745668665544,5.217,1788.9,1788.6,6.13]
[1745668666079,5.217,1788.9,1788.6,11.72095832]
[1745668666676,5.217,1788.9,1788.7,5.59054711]
[1745668667055,5.217,1788.9,1788.6,6.13]
[1745668667257,5.217,1788.9,1788.7,6.20350118]
[1745668667462,5.217,1788.9,1788.7,5.59046897]
[1745668667666,5.217,1788.9,1788.6,11.72079865]
[1745668668243,5.217,1788.9,1788.6,11.72072708]
[1745668668684,5.217,1788.9,1788.7,5.5904086]
[1745668669393,5.217,1788.9,1788.8,5.59033989]
[1745668669589,0.05,1788.9,1788.8,5.59033989]
[1745668669798,5.216,1788.9,1788.8,6.70841474]
[1745668670097,5.216,1788.9,1788.7,5.59052868]
[1745668671899,5.216,1788.9,1788.7,5.59035858]
[1745668672586,5.216,1788.9,1788.8,5.59033989]
[1745668673567,5.216,1788.9,1788.8,6.88579613]
[1745668673568,0.05,1788.9,1788.8,6.88579613]
[1745668673770,0.05,1788.9,1788.8,7.62735536]
[1745668674261,0.05,1788.9,1788.8,5.59033989]
[1745668674996,5.216,1788.9,1788.8,5.59033989]
[1745668677040,0.403169,1789.7,1788.9,6.12999999]
[1745668677334,0.403169,1789.7,1789.0,11.71954825]
[1745668677335,3.7674,1789.6,1789.0,11.71954825]
[1745668677645,4.0769357,1789.6,1789.2,5.58881532]
[1745668677788,4.59281983,1789.6,1789.2,5.58881532]
[1745668678190,1.59281983,1789.6,1789.2,5.58881532]
[1745668678385,4.59281983,1789.6,1789.2,5.58881532]
[1745668678824,7.95181983,1789.6,1789.0,6.12999999]
[1745668678988,7.95181983,1789.6,1789.0,11.71967328]
[1745668679521,0.82541983,1789.5,1789.0,11.71967328]
[1745668679922,0.82541983,1789.5,1789.0,17.30920984]
[1745668680126,0.82541983,1789.5,1789.1,5.58936176]
[1745668680624,0.82541983,1789.5,1789.2,5.5890491]
[1745668680806,0.82541983,1789.5,1789.1,5.58922449]
[1745668681116,0.82541983,1789.5,1789.2,5.58897546]
[1745668681325,0.82541983,1789.5,1789.1,5.58922267]
[1745668681510,0.82541983,1789.5,1789.1,7.32010035]
[1745668681914,0.3095357,1789.5,1789.1,5.58922267]
[1745668682108,7.1264,1789.6,1789.1,5.58922267]
[1745668682326,7.1264,1789.6,1789.0,11.71955414]
[1745668683217,7.1264,1789.6,1789.1,5.5892731]
[1745668683412,4.148,1789.5,1789.0,6.12999999]
[1745668683618,4.45742017,1789.5,1789.0,11.71969758]
[1745668684015,4.9731168,1789.5,1789.0,11.71969758]
[1745668684222,3.0,1789.4,1789.0,6.12999999]
[1745668684533,5.165,1789.3,1789.0,11.7196971]
[1745668684697,5.165,1789.3,1789.0,13.45049218]
[1745668686735,5.165,1789.3,1789.1,5.58913353]
[1745668687327,5.165,1789.3,1789.0,13.45048027]
[1745668687513,5.165,1789.3,1789.0,13.45045726]
[1745668688238,5.165,1789.3,1789.1,5.58931928]
[1745668688436,5.165,1789.3,1789.1,5.58936844]
[1745668688948,5.165,1789.3,1789.1,5.58939586]
[1745668689106,0.789,1789.5,1789.1,5.58939586]
[1745668689107,5.165,1789.2,1789.1,5.58926226]
[1745668689305,5.165,1789.2,1789.1,7.49324344]
[1745668689802,5.165,1789.2,1789.1,5.58926226]
[1745668690746,5.165,1789.2,1789.0,11.71959714]
[1745668691959,5.165,1789.2,1789.0,11.71955306]
[1745668692119,5.165,1789.2,1789.0,11.71953792]
[1745668693055,5.165,1789.2,1789.1,5.58940249]
[1745668693422,5.165,1789.2,1789.0,11.71952393]
[1745668693623,5.165,1789.2,1789.0,13.45046357]
[1745668694732,5.165,1789.2,1789.0,7.86093963]
[1745668694936,5.165,1789.2,1789.0,13.45052175]
[1745668695785,5.165,1789.2,1789.1,5.58940249]
[1745668697542,0.789,1789.5,1789.0,6.88619999]
[1745668697543,5.165,1789.3,1789.0,6.88619999]
[1745668697858,5.165,1789.3,1789.2,5.58891768]
[1745668702125,5.165,1789.3,1789.1,5.58918051]
[1745668702788,5.165,1789.3,1789.2,5.58909009]
[1745668705069,5.165,1789.3,1789.1,5.58916109]
[1745668706079,0.817,1789.1,1789.0,6.12999999]
[1745668706279,1.12724076,1789.1,1789.0,6.12999999]
[1745668707179,5.99222927,1789.1,1789.0,11.71971491]
[1745668707363,5.99222927,1789.1,1789.0,13.45067611]
[1745668707761,5.68198851,1789.1,1789.0,13.45067611]
[1745668708077,5.165,1789.1,1789.0,13.45067611]
[1745668708375,0.817,1789.4,1789.1,5.58912399]
[1745668708679,5.165,1789.3,1789.1,5.58912399]
[1745668708885,5.165,1789.3,1789.2,5.58909009]
[1745668709477,5.165,1789.3,1789.1,5.58927059]
[1745668709680,5.165,1789.3,1789.0,6.12999999]
[1745668710675,0.51700703,1789.2,1789.0,6.12999999]
[1745668711675,5.165,1789.3,1789.0,11.71970993]
[1745668712479,5.165,1789.3,1789.1,5.58918525]
[1745668712670,5.68204289,1789.3,1789.1,5.58918525]
[1745668713175,5.68204289,1789.3,1789.0,11.71956199]
[1745668714679,5.68204289,1789.3,1789.0,13.45050387]
[1745668714983,5.165,1789.3,1789.0,6.12999999]
[1745668715679,0.51700977,1789.2,1789.0,6.12999999]
[1745668715879,0.51472684,1789.2,1789.0,6.12999999]
[1745668716870,5.165,1789.3,1789.0,6.12999999]
[1745668717313,0.31012233,1789.2,1789.0,6.12999999]
[1745668718263,5.165,1789.3,1789.0,6.12999999]
[1745668718477,3.817,1789.2,1789.0,6.12999999]
[1745668718855,0.817,1789.1,1788.7,6.12999999]
[1745668719090,0.31000702,1789.0,1788.7,6.12999999]
[1745668719391,5.137,1788.9,1788.7,6.12999999]
[1745668719896,5.137,1788.9,1788.4,6.12999999]
[1745668719897,3.817,1788.8,1788.4,6.12999999]
[1745668720292,0.31000702,1788.7,1788.4,6.12999999]
[1745668720764,0.817,1788.7,1788.4,6.12999999]
[1745668721689,1.12700702,1788.7,1788.4,6.12999999]
[1745668722289,0.817,1788.7,1788.4,6.12999999]
[1745668723059,1.24636128,1788.7,1788.4,6.12999999]
[1745668723613,3.817,1788.6,1788.4,6.12999999]
[1745668723757,5.138,1788.5,1787.9,12.4877987]
[1745668723955,0.817,1788.4,1787.9,14.29591064]
[1745668724591,5.138,1788.4,1788.2,5.59205906]
[1745668724821,5.138,1788.4,1788.3,5.59190292]
[1745668725088,5.138,1788.4,1788.3,11.72190291]
[1745668726100,5.138,1788.4,1788.3,6.12999999]
[1745668727080,5.138,1788.5,1788.4,6.35624011]
[1745668727913,5.138,1788.5,1788.3,12.89399697]
[1745668727914,5.138,1788.5,1788.3,12.89393491]
[1745668728067,5.138,1788.5,1788.3,6.12999999]
[1745668730012,3.817,1788.4,1788.0,6.12999999]
[1745668733606,3.817,1788.4,1788.0,11.72283424]
[1745668733998,3.817,1788.4,1788.0,6.12999999]
[1745668734806,5.139,1788.3,1788.2,5.59203818]
[1745668734975,5.139,1788.3,1788.1,5.59235379]
[1745668735999,5.139,1788.3,1788.0,13.71233265]
[1745668739129,5.139,1788.3,1788.1,5.59250342]
[1745668739431,5.139,1788.3,1788.0,12.54002144]
[1745668741234,5.139,1788.3,1788.0,6.12999999]
[1745668741408,0.8025,1788.2,1788.0,6.12999999]
[1745668741606,3.8025,1788.2,1788.0,6.12999999]
[1745668741843,4.21761629,1788.2,1788.0,6.12999999]
[1745668742139,4.21761629,1788.2,1787.5,6.12999999]
[1745668742140,3.0,1788.0,1787.5,6.12999999]
[1745668742296,9.2995,1787.9,1787.5,6.12999999]
[1745668743386,0.8025,1787.9,1787.5,8.08767145]
[1745668743630,5.138,1787.9,1787.8,5.59346683]
[1745668743810,5.138,1787.9,1787.8,6.37866683]
[1745668744787,0.7883,1788.3,1788.0,5.59264535]
[1745668744998,5.138,1788.2,1788.0,5.59264535]
[1745668745302,3.0,1788.1,1787.9,6.12999999]
[1745668746433,0.7883,1788.0,1787.9,6.12999999]
[1745668749445,0.7883,1788.0,1787.5,5.59431961]
[1745668749629,4.1473,1788.0,1787.5,5.59431961]
[1745668749827,4.1473,1788.0,1787.4,6.37978569]
[1745668750204,4.45623681,1788.0,1787.4,5.59458569]
[1745668750729,4.97086164,1788.0,1787.5,5.59438021]
[1745668751339,4.97086164,1788.0,1787.4,7.32647202]
[1745668751523,0.7883,1787.9,1787.4,5.59448557]
[1745668751727,5.139,1787.8,1787.4,5.59448557]
[1745668751977,8.498,1787.8,1787.3,11.72489506]
[1745668752137,3.7883,1787.7,1787.3,11.72489506]
[1745668752461,3.7883,1787.7,1787.3,6.12999999]
[1745668753583,7.1473,1787.7,1787.3,6.12999999]
[1745668753730,7.65335624,1787.7,1787.3,6.12999999]
[1745668753933,7.65335624,1787.7,1787.1,5.64545316]
[1745668754274,0.7883,1787.6,1787.1,0.05]
[1745668754767,0.7883,1787.4,1787.1,0.05]
[1745668755071,5.139,1787.3,1787.1,0.05]
[1745668756550,5.139,1787.3,1787.1,5.64542346]
[1745668756751,0.8249,1787.6,1787.2,0.8065]
[1745668756963,0.8249,1787.6,1787.3,5.59476815]
[1745668756964,5.139,1787.5,1787.3,5.59476815]
[1745668757440,5.139,1787.4,1787.3,5.59476815]
[1745668758345,5.139,1787.4,1787.2,6.40164426]
[1745668758732,5.139,1787.4,1787.2,6.40160223]
[1745668758962,5.139,1787.4,1787.3,5.59503161]
[1745668759856,5.14,1787.4,1787.3,6.79469499]
[1745668760168,16.791,1787.8,1787.3,6.79469499]
[1745668760357,5.14,1787.7,1787.6,5.59391247]
[1745668760564,9.14,1787.7,1787.6,5.59391247]
[1745668761096,5.14,1787.7,1787.6,5.59391247]
[1745668762181,16.791,1787.8,1787.7,5.59377971]
[1745668762354,16.791,1787.8,1787.7,6.40027971]
[1745668762573,21.931,1787.8,1787.7,6.40027971]
[1745668762933,21.931,1787.8,1787.7,0.8065]
[1745668763138,21.931,1787.8,1787.6,5.59390051]
[1745668763354,21.931,1787.8,1787.5,6.34893355]
[1745668763575,21.931,1787.8,1787.3,1.70571962]
[1745668763576,1.33115624,1787.7,1787.1,12.53019253]
[1745668763868,4.33115624,1787.7,1787.1,12.53019253]
[1745668764254,3.359,1787.6,1787.1,12.53019253]
[1745668764443,3.359,1787.6,1787.1,18.12561768]
[1745668764741,3.359,1787.6,1787.1,12.53012515]
[1745668765589,3.359,1787.6,1787.2,5.59532076]
[1745668766038,3.359,1787.6,1787.1,12.53016585]
[1745668766237,3.359,1787.6,1787.1,18.1256317]
[1745668766468,3.8251,1787.7,1787.2,5.59531925]
[1745668766674,3.8251,1787.7,1787.3,5.5948291]
[1745668767048,4.25421481,1787.7,1787.3,5.5948291]
[1745668767448,4.25421481,1787.7,1787.2,5.59515049]
[1745668767651,7.61321481,1787.7,1787.1,11.7755389]
[1745668767877,8.11927105,1787.7,1787.1,11.77542773]
[1745668768786,8.11927105,1787.7,1787.2,6.3720408]
[1745668770081,7.61321481,1787.7,1787.2,6.3720408]
[1745668770462,7.61321481,1787.7,1787.2,6.37185242]
[1745668770673,7.61321481,1787.7,1787.2,6.37180634]
[1745668770870,7.61321481,1787.7,1787.2,6.37186877]
[1745668771210,7.61321481,1787.7,1787.3,5.5948942]
[1745668771396,4.25421481,1787.7,1787.3,5.5948942]
[1745668771771,4.56320113,1787.7,1787.3,5.5948942]
[1745668772007,5.07816703,1787.7,1787.3,5.5948942]
[1745668772405,5.07816703,1787.7,1787.2,6.37191468]
[1745668773776,5.07816703,1787.7,1787.3,5.59499537]
[1745668774620,2.07816703,1787.7,1787.3,5.59499537]
[1745668774780,3.0,1787.5,1787.2,6.37184541]
[1745668774980,3.0,1787.5,1787.1,6.18]
[1745668775375,3.0,1787.5,1787.2,5.59523148]
[1745668775591,3.0,1787.5,1787.3,5.59489129]
[1745668776099,5.138,1787.6,1787.4,5.59471491]
[1745668776714,5.138,1787.6,1787.3,5.59489241]
[1745668777395,5.138,1787.6,1787.2,5.59520723]
[1745668777627,5.138,1787.6,1787.2,7.33221368]
[1745668777804,5.65371039,1787.6,1787.2,7.33221368]
[1745668778755,0.51571039,1787.6,1787.4,5.59460163]
[1745668778906,5.138,1787.5,1787.4,5.5945353]
[1745668781020,4.25421481,1787.7,1787.4,5.5945353]
[1745668781258,5.138,1787.5,1787.4,5.5945353]
[1745668781460,5.138,1787.5,1787.4,6.77986883]
[1745668781941,3.8251,1787.7,1787.5,5.59432944]
[1745668782120,5.138,1787.6,1787.5,5.59432944]
[1745668782305,16.791,1787.8,1787.5,5.59432944]
[1745668782528,16.791,1787.8,1787.7,5.59377971]
[1745668782763,0.7834,1788.0,1787.7,1.19584533]
[1745668783066,5.138,1788.0,1787.9,5.59300123]
[1745668783207,9.138,1788.0,1787.8,5.59322028]
[1745668783407,9.138,1788.0,1787.8,11.18646184]
[1745668783609,4.0,1788.0,1787.9,5.59315397]
[1745668783846,9.138,1788.0,1787.9,6.40475397]
[1745668784250,5.138,1788.0,1787.9,6.40475397]
[1745668785371,0.7515,1788.9,1788.3,5.59190292]
[1745668785574,5.137,1788.8,1788.3,11.72174623]
[1745668785875,3.7515,1788.7,1788.3,11.72174623]
[1745668786255,1.25755624,1788.7,1788.0,6.9416]
[1745668786454,3.7515,1788.6,1788.0,12.53427955]
[1745668786658,0.7515,1788.5,1788.1,5.59250582]
[1745668786869,5.137,1788.4,1788.1,5.59250582]
[1745668787183,5.137,1788.4,1788.0,11.72259946]
[1745668787688,5.137,1788.4,1788.0,6.13]
[1745668787858,0.7634,1788.3,1787.9,5.59300006]
[1745668788044,0.7634,1788.3,1787.8,0.8116]
[1745668788245,0.7634,1788.3,1787.8,5.59335921]
[1745668788647,0.7634,1788.0,1787.7,6.13]
[1745668788879,5.137,1787.9,1787.5,5.59439812]
[1745668789081,5.137,1787.9,1787.6,5.59408755]
[1745668789785,5.137,1787.9,1787.6,5.59388483]
[1745668790480,5.137,1787.9,1787.7,5.59373008]
[1745668790846,5.137,1787.9,1787.6,5.59393461]
[1745668791079,5.137,1787.9,1787.6,5.59388055]
[1745668791251,5.137,1787.9,1787.6,6.83262247]
[1745668791655,5.137,1787.9,1787.6,6.83265285]
[1745668791852,5.137,1787.9,1787.6,6.8325945]
[1745668792055,5.137,1787.9,1787.6,5.59383283]
[1745668794889,5.137,1787.9,1787.5,5.59421477]
[1745668795088,0.8183,1787.8,1787.5,5.59421477]
[1745668795863,0.8183,1787.8,1787.5,11.18842642]
[1745668796195,0.8183,1787.8,1787.5,5.59421165]